[Event "Titled Tuesday Blitz April 18 Early 2023"]
[White "Manukyan, Artyom"]
[Black "Torres Hernandez, Leslie Carolin"]
[WhiteFideId "13305786"]
[BlackFideId "8400504"]
[WhiteElo "2078"]
[BlackElo "1920"]
[Result "0-1"]
[Round "03"]
[TimeControl "180+2"]
[Date "2023.04.18"]
[WhiteClock "0:00:42"]
[BlackClock "0:00:30"]

1. e4 {[%clk 0:02:24]}  e6 {[%clk 0:02:48]} 2. d4 {[%clk 0:02:24]}  d5 {[%clk 0:02:45]} 3. Bd3 {[%clk 0:02:25]}  dxe4 {[%clk 0:02:42]} 4. Bxe4 {[%clk 0:02:26]}  Nf6 {[%clk 0:02:41]} 5. Bf3 {[%clk 0:02:26]}  c5 {[%clk 0:02:37]} 6. Ne2 {[%clk 0:02:25]}  Be7 {[%clk 0:02:35]} 7. O-O {[%clk 0:02:25]}  O-O {[%clk 0:02:35]} 8. Nbc3 {[%clk 0:02:26]}  Nbd7 {[%clk 0:02:34]} 9. d5 {[%clk 0:02:22]}  exd5 {[%clk 0:02:31]} 10. Nxd5 {[%clk 0:02:22]}  Nxd5 {[%clk 0:02:29]} 11. Qxd5 {[%clk 0:02:23]}  Nf6 {[%clk 0:02:27]} 12. Qxd8 {[%clk 0:02:22]}  Rxd8 {[%clk 0:02:28]} 13. Be3 {[%clk 0:02:22]}  Bf5 {[%clk 0:02:21]} 14. c3 {[%clk 0:02:17]}  Nd5 {[%clk 0:02:17]} 15. Bc1 {[%clk 0:02:07]}  Bc2 {[%clk 0:01:38]} 16. Re1 {[%clk 0:02:02]}  Bf8 {[%clk 0:01:32]} 17. Nf4 {[%clk 0:02:00]}  Nxf4 {[%clk 0:01:25]} 18. Bxf4 {[%clk 0:02:01]}  Rd7 {[%clk 0:01:24]} 19. Rac1 {[%clk 0:01:58]}  Bd3 {[%clk 0:01:16]} 20. Rcd1 {[%clk 0:01:56]}  Rad8 {[%clk 0:01:13]} 21. h4 {[%clk 0:01:56]}  c4 {[%clk 0:01:10]} 22. Bg4 {[%clk 0:01:45]}  f5 {[%clk 0:01:08]} 23. Bf3 {[%clk 0:01:45]}  h6 {[%clk 0:01:06]} 24. h5 {[%clk 0:01:45]}  Bc5 {[%clk 0:01:05]} 25. g3 {[%clk 0:01:40]}  Bc2 {[%clk 0:00:58]} 26. Rxd7 {[%clk 0:01:37]}  Rxd7 {[%clk 0:00:59]} 27. Re5 {[%clk 0:01:33]}  Bb6 {[%clk 0:00:52]} 28. Bd5+ {[%clk 0:01:27]}  Kh7 {[%clk 0:00:50]} 29. Bxc4 {[%clk 0:01:17]}  Rd1+ {[%clk 0:00:49]} 30. Kg2 {[%clk 0:01:15]}  Be4+ {[%clk 0:00:48]} 31. f3 {[%clk 0:01:14]}  Rg1+ {[%clk 0:00:47]} 32. Kh3 {[%clk 0:00:56]}  Bxf3 {[%clk 0:00:46]} 33. g4 {[%clk 0:00:56]}  fxg4+ {[%clk 0:00:35]} 34. Kh2 {[%clk 0:00:45]}  Rh1+ {[%clk 0:00:31]} 35. Kg3 {[%clk 0:00:42]}  Rh3# {[%clk 0:00:30]} 0-1


[Site "https://www.chess.com"]

[Event "Titled Tuesday Blitz April 18 Early 2023"]
[White "Antonova, Nadezhda"]
[Black "Namitbir Singh Walia"]
[WhiteFideId "14700182"]
[BlackFideId "35071068"]
[WhiteElo "1765"]
[BlackElo "2239"]
[Result "1-0"]
[Round "03"]
[TimeControl "180+2"]
[Date "2023.04.18"]
[WhiteClock "0:00:13"]
[BlackClock "0:00:03"]

1. Nf3 {[%clk 0:02:59]}  Nf6 {[%clk 0:02:57]} 2. b3 {[%clk 0:03:00]}  g6 {[%clk 0:02:55]} 3. Bb2 {[%clk 0:03:01]}  Bg7 {[%clk 0:02:56]} 4. g3 {[%clk 0:03:01]}  O-O {[%clk 0:02:56]} 5. Bg2 {[%clk 0:03:02]}  d6 {[%clk 0:02:55]} 6. d4 {[%clk 0:03:03]}  e5 {[%clk 0:02:47]} 7. dxe5 {[%clk 0:03:01]}  Ng4 {[%clk 0:02:47]} 8. O-O {[%clk 0:02:54]}  Nxe5 {[%clk 0:02:46]} 9. Nxe5 {[%clk 0:02:35]}  dxe5 {[%clk 0:02:47]} 10. c4 {[%clk 0:02:33]}  c6 {[%clk 0:02:41]} 11. Nc3 {[%clk 0:02:32]}  Qe7 {[%clk 0:02:38]} 12. Qc2 {[%clk 0:02:29]}  Bg4 {[%clk 0:02:27]} 13. h3 {[%clk 0:02:26]}  Be6 {[%clk 0:02:24]} 14. Rfd1 {[%clk 0:02:25]}  Nd7 {[%clk 0:02:22]} 15. Rd2 {[%clk 0:02:25]}  Rfd8 {[%clk 0:02:18]} 16. Rad1 {[%clk 0:02:25]}  Nf8 {[%clk 0:02:00]} 17. Ne4 {[%clk 0:02:19]}  f5 {[%clk 0:01:31]} 18. Nd6 {[%clk 0:02:18]}  Rd7 {[%clk 0:01:25]} 19. c5 {[%clk 0:02:16]}  Rad8 {[%clk 0:01:20]} 20. Bc3 {[%clk 0:01:55]}  Kh8 {[%clk 0:01:19]} 21. b4 {[%clk 0:01:55]}  Bg8 {[%clk 0:01:18]} 22. Qb2 {[%clk 0:01:42]}  h6 {[%clk 0:00:56]} 23. a4 {[%clk 0:01:39]}  Kh7 {[%clk 0:00:41]} 24. b5 {[%clk 0:01:35]}  Rc7 {[%clk 0:00:40]} 25. b6 {[%clk 0:01:26]}  axb6 {[%clk 0:00:39]} 26. Qxb6 {[%clk 0:01:26]}  Rcd7 {[%clk 0:00:39]} 27. Nxb7 {[%clk 0:01:02]}  Rxd2 {[%clk 0:00:38]} 28. Rxd2 {[%clk 0:01:00]}  Rxd2 {[%clk 0:00:36]} 29. Bxd2 {[%clk 0:01:00]}  Qd7 {[%clk 0:00:26]} 30. Nd6 {[%clk 0:00:52]}  e4 {[%clk 0:00:26]} 31. a5 {[%clk 0:00:45]}  Bd4 {[%clk 0:00:17]} 32. a6 {[%clk 0:00:41]}  Ne6 {[%clk 0:00:09]} 33. Qb7 {[%clk 0:00:33]}  Nxc5 {[%clk 0:00:04]} 34. Qxd7+ {[%clk 0:00:18]}  Nxd7 {[%clk 0:00:05]} 35. Be3 {[%clk 0:00:14]}  Bxe3 {[%clk 0:00:03]} 36. fxe3 {[%clk 0:00:14]}  Bc4 {[%clk 0:00:03]} 37. a7 {[%clk 0:00:14]}  Nb6 {[%clk 0:00:03]} 38. Nxc4 {[%clk 0:00:14]}  Nxc4 {[%clk 0:00:03]} 39. a8=Q {[%clk 0:00:13]} 1-0


[Site "https://www.chess.com"]

[Event "Titled Tuesday Blitz April 18 Early 2023"]
[White "Berthier, Hugo"]
[Black "Floresvillar Gonzalez, Luis Migu"]
[WhiteFideId "655864"]
[BlackFideId "5100542"]
[WhiteElo "2193"]
[BlackElo "2040"]
[Result "0-1"]
[Round "03"]
[TimeControl "180+2"]
[Date "2023.04.18"]
[WhiteClock "0:00:56"]
[BlackClock "0:00:20"]

1. d4 {[%clk 0:03:00]}  d5 {[%clk 0:02:55]} 2. c4 {[%clk 0:02:50]}  c6 {[%clk 0:02:55]} 3. Nf3 {[%clk 0:02:49]}  Nf6 {[%clk 0:02:55]} 4. e3 {[%clk 0:02:50]}  Bf5 {[%clk 0:02:53]} 5. cxd5 {[%clk 0:02:45]}  Nxd5 {[%clk 0:02:46]} 6. Qb3 {[%clk 0:02:44]}  Qb6 {[%clk 0:02:45]} 7. Nc3 {[%clk 0:02:43]}  Qxb3 {[%clk 0:02:43]} 8. axb3 {[%clk 0:02:43]}  e6 {[%clk 0:02:25]} 9. Nxd5 {[%clk 0:02:33]}  exd5 {[%clk 0:02:17]} 10. Bd2 {[%clk 0:02:31]}  a6 {[%clk 0:02:17]} 11. Ne5 {[%clk 0:02:30]}  Nd7 {[%clk 0:02:14]} 12. Nd3 {[%clk 0:02:25]}  Bd6 {[%clk 0:02:09]} 13. b4 {[%clk 0:01:56]}  Ke7 {[%clk 0:02:00]} 14. Nc5 {[%clk 0:01:50]}  Rab8 {[%clk 0:01:50]} 15. Be2 {[%clk 0:01:45]}  f6 {[%clk 0:01:43]} 16. h3 {[%clk 0:01:38]}  Rhd8 {[%clk 0:01:39]} 17. O-O {[%clk 0:01:30]}  g5 {[%clk 0:01:36]} 18. Rfc1 {[%clk 0:01:29]}  Bg6 {[%clk 0:01:27]} 19. Bc3 {[%clk 0:01:29]}  h5 {[%clk 0:01:25]} 20. g4 {[%clk 0:01:28]}  hxg4 {[%clk 0:01:17]} 21. hxg4 {[%clk 0:01:28]}  Rh8 {[%clk 0:01:15]} 22. Bf3 {[%clk 0:01:27]}  Rh7 {[%clk 0:01:03]} 23. Kf1 {[%clk 0:01:26]}  Bxc5 {[%clk 0:00:48]} 24. bxc5 {[%clk 0:01:26]}  Bd3+ {[%clk 0:00:47]} 25. Ke1 {[%clk 0:01:26]}  Rbh8 {[%clk 0:00:44]} 26. Kd2 {[%clk 0:01:25]}  Bb5 {[%clk 0:00:43]} 27. Rh1 {[%clk 0:01:21]}  Nf8 {[%clk 0:00:42]} 28. Ba5 {[%clk 0:01:19]}  Ng6 {[%clk 0:00:39]} 29. Bc7 {[%clk 0:01:18]}  Nh4 {[%clk 0:00:36]} 30. Bd1 {[%clk 0:01:10]}  Ke6 {[%clk 0:00:35]} 31. Bg3 {[%clk 0:01:08]}  Ng6 {[%clk 0:00:33]} 32. Bf3 {[%clk 0:01:08]}  Rxh1 {[%clk 0:00:31]} 33. Rxh1 {[%clk 0:01:09]}  Rxh1 {[%clk 0:00:30]} 34. Bxh1 {[%clk 0:01:10]}  Nf8 {[%clk 0:00:27]} 35. Kc3 {[%clk 0:01:08]}  Nd7 {[%clk 0:00:27]} 36. Bf3 {[%clk 0:01:07]}  f5 {[%clk 0:00:25]} 37. gxf5+ {[%clk 0:01:05]}  Kxf5 {[%clk 0:00:25]} 38. Bh5 {[%clk 0:01:05]}  Nf6 {[%clk 0:00:25]} 39. Bf7 {[%clk 0:01:05]}  Ne4+ {[%clk 0:00:25]} 40. Kb4 {[%clk 0:01:04]}  Nxg3 {[%clk 0:00:25]} 41. fxg3 {[%clk 0:01:05]}  Kg4 {[%clk 0:00:25]} 42. Be6+ {[%clk 0:01:03]}  Kxg3 {[%clk 0:00:25]} 43. Bc8 {[%clk 0:01:04]}  g4 {[%clk 0:00:24]} 44. Bxb7 {[%clk 0:01:05]}  Kf3 {[%clk 0:00:24]} 45. Ka5 {[%clk 0:00:53]}  g3 {[%clk 0:00:23]} 46. Kb6 {[%clk 0:00:54]}  g2 {[%clk 0:00:23]} 47. Bxc6 {[%clk 0:00:55]}  Bxc6 {[%clk 0:00:22]} 48. Kxc6 {[%clk 0:00:56]}  g1=Q {[%clk 0:00:22]} 49. Kxd5 {[%clk 0:00:57]}  Qb1 {[%clk 0:00:21]} 50. Kc6 {[%clk 0:00:54]}  Qxb2 {[%clk 0:00:21]} 51. d5 {[%clk 0:00:55]}  Qb5+ {[%clk 0:00:22]} 52. Kd6 {[%clk 0:00:56]}  Ke4 {[%clk 0:00:20]} 53. c6 {[%clk 0:00:54]}  Qxd5+ {[%clk 0:00:19]} 54. Kc7 {[%clk 0:00:55]}  a5 {[%clk 0:00:18]} 55. Kb6 {[%clk 0:00:55]}  a4 {[%clk 0:00:19]} 56. c7 {[%clk 0:00:55]}  Qd6+ {[%clk 0:00:19]} 57. Kb7 {[%clk 0:00:56]}  Qxc7+ {[%clk 0:00:19]} 58. Kxc7 {[%clk 0:00:56]}  a3 {[%clk 0:00:20]} 0-1


[Site "https://www.chess.com"]

[Event "Titled Tuesday Blitz April 18 Early 2023"]
[White "Kuchava, Ana"]
[Black "Saya, Ethan"]
[WhiteFideId "13605348"]
[BlackFideId "26095181"]
[WhiteElo "2001"]
[BlackElo "2189"]
[Result "1-0"]
[Round "03"]
[TimeControl "180+2"]
[Date "2023.04.18"]
[WhiteClock "0:00:37"]
[BlackClock "0:01:36"]

1. d4 {[%clk 0:03:00]}  Nf6 {[%clk 0:02:56]} 2. Nf3 {[%clk 0:03:00]}  e6 {[%clk 0:02:52]} 3. c4 {[%clk 0:02:58]}  d5 {[%clk 0:02:53]} 4. Nc3 {[%clk 0:02:54]}  c6 {[%clk 0:02:52]} 5. e3 {[%clk 0:02:49]}  Nbd7 {[%clk 0:02:52]} 6. Bd3 {[%clk 0:02:46]}  Bd6 {[%clk 0:02:50]} 7. O-O {[%clk 0:02:42]}  O-O {[%clk 0:02:43]} 8. e4 {[%clk 0:02:36]}  dxe4 {[%clk 0:02:40]} 9. Nxe4 {[%clk 0:02:37]}  Nxe4 {[%clk 0:02:41]} 10. Bxe4 {[%clk 0:02:37]}  Nf6 {[%clk 0:02:42]} 11. Bc2 {[%clk 0:02:34]}  c5 {[%clk 0:02:39]} 12. Be3 {[%clk 0:02:30]}  cxd4 {[%clk 0:02:38]} 13. Nxd4 {[%clk 0:02:28]}  a6 {[%clk 0:02:35]} 14. Qd2 {[%clk 0:02:22]}  Qe7 {[%clk 0:02:34]} 15. Rad1 {[%clk 0:02:20]}  Bb4 {[%clk 0:02:33]} 16. Qe2 {[%clk 0:02:15]}  Bd7 {[%clk 0:02:32]} 17. a3 {[%clk 0:02:13]}  Bc5 {[%clk 0:02:28]} 18. b4 {[%clk 0:02:10]}  Bxd4 {[%clk 0:02:28]} 19. Bxd4 {[%clk 0:02:09]}  Bc6 {[%clk 0:02:29]} 20. Bc5 {[%clk 0:02:08]}  Qc7 {[%clk 0:02:26]} 21. Bxf8 {[%clk 0:02:07]}  Rxf8 {[%clk 0:02:26]} 22. Qd3 {[%clk 0:02:03]}  Qf4 {[%clk 0:02:22]} 23. Qd4 {[%clk 0:01:43]}  Qg5 {[%clk 0:02:18]} 24. f3 {[%clk 0:01:41]}  Rc8 {[%clk 0:02:13]} 25. Be4 {[%clk 0:01:34]}  Nxe4 {[%clk 0:02:07]} 26. fxe4 {[%clk 0:01:35]}  h5 {[%clk 0:02:03]} 27. c5 {[%clk 0:01:32]}  h4 {[%clk 0:02:00]} 28. Rf3 {[%clk 0:01:28]}  Qg4 {[%clk 0:01:58]} 29. Re1 {[%clk 0:01:22]}  f5 {[%clk 0:01:54]} 30. h3 {[%clk 0:01:12]}  Qg5 {[%clk 0:01:49]} 31. Qe3 {[%clk 0:01:09]}  Qxe3+ {[%clk 0:01:46]} 32. Rfxe3 {[%clk 0:01:10]}  Bxe4 {[%clk 0:01:47]} 33. Rd1 {[%clk 0:01:09]}  Rc7 {[%clk 0:01:46]} 34. Kf2 {[%clk 0:01:04]}  Kf7 {[%clk 0:01:45]} 35. Rxe4 {[%clk 0:01:00]}  fxe4 {[%clk 0:01:45]} 36. Ke3 {[%clk 0:01:00]}  b6 {[%clk 0:01:35]} 37. cxb6 {[%clk 0:00:55]}  Rb7 {[%clk 0:01:35]} 38. Rd6 {[%clk 0:00:53]}  Ke7 {[%clk 0:01:35]} 39. Rc6 {[%clk 0:00:40]}  Kd7 {[%clk 0:01:36]} 40. Rc7+ {[%clk 0:00:39]}  Rxc7 {[%clk 0:01:36]} 41. bxc7 {[%clk 0:00:40]}  Kxc7 {[%clk 0:01:37]} 42. a4 {[%clk 0:00:37]}  Kd6 {[%clk 0:01:17]} 43. Kxe4 {[%clk 0:00:37]}  Ke7 {[%clk 0:01:13]} 44. Ke5 {[%clk 0:00:36]}  Kd7 {[%clk 0:01:13]} 45. b5 {[%clk 0:00:34]}  axb5 {[%clk 0:01:14]} 46. axb5 {[%clk 0:00:34]}  Ke7 {[%clk 0:01:14]} 47. b6 {[%clk 0:00:34]}  Kd7 {[%clk 0:01:15]} 48. b7 {[%clk 0:00:34]}  Kc7 {[%clk 0:01:16]} 49. Kxe6 {[%clk 0:00:34]}  Kxb7 {[%clk 0:01:16]} 50. Kf7 {[%clk 0:00:34]}  Kc6 {[%clk 0:01:15]} 51. Kxg7 {[%clk 0:00:34]}  Kd5 {[%clk 0:01:16]} 52. Kg6 {[%clk 0:00:33]}  Ke4 {[%clk 0:01:17]} 53. Kg5 {[%clk 0:00:33]}  Ke5 {[%clk 0:01:17]} 54. Kxh4 {[%clk 0:00:33]}  Kf6 {[%clk 0:01:18]} 55. Kg4 {[%clk 0:00:33]}  Kg7 {[%clk 0:01:19]} 56. h4 {[%clk 0:00:33]}  Kh7 {[%clk 0:01:20]} 57. Kg5 {[%clk 0:00:34]}  Kg7 {[%clk 0:01:21]} 58. h5 {[%clk 0:00:34]}  Kh7 {[%clk 0:01:22]} 59. h6 {[%clk 0:00:35]}  Kh8 {[%clk 0:01:22]} 60. Kg6 {[%clk 0:00:35]}  Kg8 {[%clk 0:01:23]} 61. g4 {[%clk 0:00:34]}  Kh8 {[%clk 0:01:24]} 62. g5 {[%clk 0:00:33]}  Kg8 {[%clk 0:01:25]} 63. h7+ {[%clk 0:00:32]}  Kh8 {[%clk 0:01:26]} 64. Kf7 {[%clk 0:00:31]}  Kxh7 {[%clk 0:01:26]} 65. g6+ {[%clk 0:00:32]}  Kh6 {[%clk 0:01:26]} 66. g7 {[%clk 0:00:32]}  Kg5 {[%clk 0:01:26]} 67. g8=Q+ {[%clk 0:00:33]}  Kf4 {[%clk 0:01:26]} 68. Qg6 {[%clk 0:00:33]}  Ke5 {[%clk 0:01:27]} 69. Qe6+ {[%clk 0:00:32]}  Kd4 {[%clk 0:01:27]} 70. Qf5 {[%clk 0:00:32]}  Kc4 {[%clk 0:01:28]} 71. Qe5 {[%clk 0:00:32]}  Kb4 {[%clk 0:01:28]} 72. Qd5 {[%clk 0:00:32]}  Kc3 {[%clk 0:01:28]} 73. Qe4 {[%clk 0:00:32]}  Kb3 {[%clk 0:01:29]} 74. Qd4 {[%clk 0:00:32]}  Ka3 {[%clk 0:01:30]} 75. Qc4 {[%clk 0:00:32]}  Kb2 {[%clk 0:01:30]} 76. Qd3 {[%clk 0:00:32]}  Kc1 {[%clk 0:01:31]} 77. Qe2 {[%clk 0:00:33]}  Kb1 {[%clk 0:01:32]} 78. Qd2 {[%clk 0:00:33]}  Ka1 {[%clk 0:01:33]} 79. Ke6 {[%clk 0:00:33]}  Kb1 {[%clk 0:01:33]} 80. Kd5 {[%clk 0:00:34]}  Ka1 {[%clk 0:01:34]} 81. Kc4 {[%clk 0:00:35]}  Kb1 {[%clk 0:01:35]} 82. Kb3 {[%clk 0:00:36]}  Ka1 {[%clk 0:01:36]} 83. Qb2# {[%clk 0:00:37]} 1-0


[Site "https://www.chess.com"]

[Event "Titled Tuesday Blitz April 18 Early 2023"]
[White "Fernandez Hernandez, Gerardo"]
[Black "Palczert, Matyas"]
[WhiteFideId "2207400"]
[BlackFideId "784958"]
[WhiteElo "2197"]
[BlackElo "2224"]
[Result "0-1"]
[Round "03"]
[TimeControl "180+2"]
[Date "2023.04.18"]
[WhiteClock "0:01:50"]
[BlackClock "0:02:22"]

1. e4 {[%clk 0:03:00]}  c5 {[%clk 0:02:59]} 2. d3 {[%clk 0:03:01]}  Nc6 {[%clk 0:02:55]} 3. g4 {[%clk 0:03:01]}  d5 {[%clk 0:02:54]} 4. Nd2 {[%clk 0:02:55]}  dxe4 {[%clk 0:02:46]} 5. Nxe4 {[%clk 0:02:47]}  Nf6 {[%clk 0:02:45]} 6. Nxf6+ {[%clk 0:02:46]}  exf6 {[%clk 0:02:44]} 7. Bg2 {[%clk 0:02:43]}  Bd6 {[%clk 0:02:41]} 8. Qe2+ {[%clk 0:02:30]}  Be6 {[%clk 0:02:37]} 9. Bxc6+ {[%clk 0:02:22]}  bxc6 {[%clk 0:02:36]} 10. Nf3 {[%clk 0:02:13]}  O-O {[%clk 0:02:34]} 11. g5 {[%clk 0:02:09]}  Re8 {[%clk 0:02:28]} 12. gxf6 {[%clk 0:01:51]}  Bg4 {[%clk 0:02:22]} 13. Be3 {[%clk 0:01:50]}  Qxf6 {[%clk 0:02:22]} 0-1


[Site "https://www.chess.com"]

[Event "Titled Tuesday Blitz April 18 Early 2023"]
[White "Kopczynski, Michal"]
[Black "Ciuffoletti, Paolo"]
[WhiteFideId "1124200"]
[BlackFideId "807630"]
[WhiteElo "2212"]
[BlackElo "2143"]
[Result "0-1"]
[Round "03"]
[TimeControl "180+2"]
[Date "2023.04.18"]
[WhiteClock "0:00:01"]
[BlackClock "0:00:03"]

1. e4 {[%clk 0:03:00]}  c5 {[%clk 0:02:49]} 2. d4 {[%clk 0:03:00]}  cxd4 {[%clk 0:02:48]} 3. c3 {[%clk 0:03:01]}  d5 {[%clk 0:02:44]} 4. exd5 {[%clk 0:03:01]}  Qxd5 {[%clk 0:02:44]} 5. cxd4 {[%clk 0:03:02]}  Nc6 {[%clk 0:02:44]} 6. Nf3 {[%clk 0:03:02]}  e6 {[%clk 0:02:41]} 7. Be2 {[%clk 0:03:01]}  Nf6 {[%clk 0:02:40]} 8. Nc3 {[%clk 0:03:02]}  Qd8 {[%clk 0:02:39]} 9. O-O {[%clk 0:03:03]}  Be7 {[%clk 0:02:39]} 10. Bg5 {[%clk 0:03:02]}  O-O {[%clk 0:02:38]} 11. Rc1 {[%clk 0:03:02]}  b6 {[%clk 0:02:30]} 12. Bd3 {[%clk 0:02:56]}  Bb7 {[%clk 0:02:21]} 13. Bb1 {[%clk 0:02:56]}  Nd5 {[%clk 0:02:02]} 14. Qd3 {[%clk 0:02:45]}  g6 {[%clk 0:01:49]} 15. Bh6 {[%clk 0:02:43]}  Re8 {[%clk 0:01:49]} 16. a3 {[%clk 0:02:20]}  Bf6 {[%clk 0:01:41]} 17. Ne4 {[%clk 0:02:17]}  Bg7 {[%clk 0:01:38]} 18. Bxg7 {[%clk 0:02:18]}  Kxg7 {[%clk 0:01:38]} 19. Qd2 {[%clk 0:02:16]}  Nce7 {[%clk 0:01:24]} 20. Ne5 {[%clk 0:02:08]}  Nf5 {[%clk 0:01:16]} 21. Ng3 {[%clk 0:01:35]}  Qe7 {[%clk 0:00:48]} 22. Nxf5+ {[%clk 0:01:33]}  gxf5 {[%clk 0:00:42]} 23. Rfe1 {[%clk 0:01:28]}  Rac8 {[%clk 0:00:32]} 24. Rxc8 {[%clk 0:01:14]}  Rxc8 {[%clk 0:00:31]} 25. Nf3 {[%clk 0:01:10]}  Qf6 {[%clk 0:00:24]} 26. h4 {[%clk 0:01:07]}  Kh8 {[%clk 0:00:22]} 27. Qg5 {[%clk 0:01:03]}  Qxg5 {[%clk 0:00:20]} 28. Nxg5 {[%clk 0:01:04]}  Kg7 {[%clk 0:00:19]} 29. Nf3 {[%clk 0:00:50]}  Nf4 {[%clk 0:00:18]} 30. Ne5 {[%clk 0:00:50]}  Nxg2 {[%clk 0:00:17]} 31. Rd1 {[%clk 0:00:46]}  Nf4 {[%clk 0:00:17]} 32. Kh2 {[%clk 0:00:34]}  Kf6 {[%clk 0:00:17]} 33. Re1 {[%clk 0:00:28]}  Rg8 {[%clk 0:00:16]} 34. f3 {[%clk 0:00:15]}  Rg2+ {[%clk 0:00:15]} 35. Kh1 {[%clk 0:00:15]}  Rxb2 {[%clk 0:00:12]} 36. Nd7+ {[%clk 0:00:15]}  Ke7 {[%clk 0:00:10]} 37. Ne5 {[%clk 0:00:16]}  Nh5 {[%clk 0:00:08]} 38. Rg1 {[%clk 0:00:09]}  f6 {[%clk 0:00:05]} 39. Be4 {[%clk 0:00:01]}  fxe4 {[%clk 0:00:03]} 40. Nc4 {[%clk 0:00:02]}  Rc2 {[%clk 0:00:02]} 41. Ne3 {[%clk 0:00:02]}  Rc3 {[%clk 0:00:02]} 42. Ng4 {[%clk 0:00:01]}  exf3 {[%clk 0:00:03]} 0-1


[Site "https://www.chess.com"]

[Event "Titled Tuesday Blitz April 18 Early 2023"]
[White "Yeritsyan, Hayk"]
[Black "Kiseljova, Marya"]
[WhiteFideId "13307320"]
[BlackFideId "4155009"]
[WhiteElo "2402"]
[BlackElo "1851"]
[Result "1/2-1/2"]
[Round "03"]
[TimeControl "180+2"]
[Date "2023.04.18"]
[WhiteClock "0:00:16"]
[BlackClock "0:01:18"]

1. d4 {[%clk 0:02:31]}  Nf6 {[%clk 0:02:58]} 2. Nf3 {[%clk 0:02:31]}  e6 {[%clk 0:02:58]} 3. e3 {[%clk 0:02:29]}  d5 {[%clk 0:02:58]} 4. Bd3 {[%clk 0:02:28]}  Be7 {[%clk 0:02:57]} 5. Ne5 {[%clk 0:02:28]}  O-O {[%clk 0:02:55]} 6. Nd2 {[%clk 0:02:25]}  c5 {[%clk 0:02:55]} 7. c3 {[%clk 0:02:25]}  Nc6 {[%clk 0:02:47]} 8. f4 {[%clk 0:02:10]}  Rb8 {[%clk 0:02:26]} 9. Qf3 {[%clk 0:02:08]}  Nd7 {[%clk 0:02:06]} 10. O-O {[%clk 0:02:04]}  f6 {[%clk 0:01:51]} 11. Bxh7+ {[%clk 0:02:02]}  Kxh7 {[%clk 0:01:44]} 12. Qh3+ {[%clk 0:02:01]}  Kg8 {[%clk 0:01:37]} 13. Qxe6+ {[%clk 0:01:59]}  Kh7 {[%clk 0:01:37]} 14. Rf3 {[%clk 0:01:52]}  Ndxe5 {[%clk 0:01:33]} 15. Rh3+ {[%clk 0:01:27]}  Kg6 {[%clk 0:01:33]} 16. Rg3+ {[%clk 0:00:49]}  Kh7 {[%clk 0:01:19]} 17. Rh3+ {[%clk 0:00:40]}  Kg6 {[%clk 0:01:19]} 18. Rg3+ {[%clk 0:00:17]}  Kh7 {[%clk 0:01:18]} 19. Rh3+ {[%clk 0:00:16]} 1/2-1/2


[Site "https://www.chess.com"]

[Event "Titled Tuesday Blitz April 18 Early 2023"]
[White "Osuna Vega, Enrique"]
[Black "LeoLV10"]
[WhiteFideId "2219549"]
[WhiteElo "2119"]
[BlackElo "2384"]
[Result "0-1"]
[Round "03"]
[TimeControl "180+2"]
[Date "2023.04.18"]
[WhiteClock "0:01:11"]
[BlackClock "0:00:33"]

1. e4 {[%clk 0:03:00]}  c6 {[%clk 0:03:00]} 2. Nf3 {[%clk 0:02:59]}  d5 {[%clk 0:03:01]} 3. Nc3 {[%clk 0:02:59]}  Bg4 {[%clk 0:02:58]} 4. h3 {[%clk 0:02:59]}  Bxf3 {[%clk 0:02:57]} 5. Qxf3 {[%clk 0:03:00]}  e6 {[%clk 0:02:57]} 6. d3 {[%clk 0:02:59]}  Nd7 {[%clk 0:02:57]} 7. g4 {[%clk 0:02:54]}  Bb4 {[%clk 0:02:57]} 8. Bd2 {[%clk 0:02:53]}  Ne7 {[%clk 0:02:41]} 9. Bg2 {[%clk 0:02:50]}  d4 {[%clk 0:02:36]} 10. Nb1 {[%clk 0:02:49]}  Qb6 {[%clk 0:02:37]} 11. O-O {[%clk 0:02:40]}  Bd6 {[%clk 0:02:35]} 12. b3 {[%clk 0:02:33]}  Ng6 {[%clk 0:02:25]} 13. a4 {[%clk 0:02:09]}  Qc7 {[%clk 0:02:14]} 14. Na3 {[%clk 0:02:03]}  Nh4 {[%clk 0:02:14]} 15. Qe2 {[%clk 0:01:58]}  Bf4 {[%clk 0:01:48]} 16. Nc4 {[%clk 0:01:41]}  g5 {[%clk 0:01:10]} 17. a5 {[%clk 0:01:38]}  h5 {[%clk 0:01:03]} 18. a6 {[%clk 0:01:29]}  b5 {[%clk 0:00:50]} 19. Na5 {[%clk 0:01:23]}  hxg4 {[%clk 0:00:41]} 20. Qxg4 {[%clk 0:01:11]}  Bxd2 {[%clk 0:00:33]} 0-1


[Site "https://www.chess.com"]

[Event "Titled Tuesday Blitz April 18 Early 2023"]
[White "Szyszylo, Rafal"]
[Black "Steenbekkers, Franck"]
[WhiteFideId "1109626"]
[BlackFideId "1004220"]
[WhiteElo "1951"]
[BlackElo "2093"]
[Result "1-0"]
[Round "03"]
[TimeControl "180+2"]
[Date "2023.04.18"]
[WhiteClock "0:00:57"]
[BlackClock "0:00:17"]

1. e4 {[%clk 0:03:00]}  c5 {[%clk 0:02:52]} 2. Ne2 {[%clk 0:02:59]}  Nc6 {[%clk 0:02:50]} 3. g3 {[%clk 0:02:52]}  g6 {[%clk 0:02:49]} 4. Bg2 {[%clk 0:02:43]}  Bg7 {[%clk 0:02:47]} 5. c3 {[%clk 0:02:43]}  e5 {[%clk 0:02:46]} 6. O-O {[%clk 0:02:42]}  Nge7 {[%clk 0:02:45]} 7. h3 {[%clk 0:02:43]}  d6 {[%clk 0:02:44]} 8. a4 {[%clk 0:02:42]}  h6 {[%clk 0:02:43]} 9. Na3 {[%clk 0:02:42]}  Be6 {[%clk 0:02:42]} 10. d4 {[%clk 0:02:42]}  cxd4 {[%clk 0:02:36]} 11. cxd4 {[%clk 0:02:43]}  Nxd4 {[%clk 0:02:26]} 12. Nxd4 {[%clk 0:02:42]}  exd4 {[%clk 0:02:25]} 13. Nb5 {[%clk 0:02:39]}  d5 {[%clk 0:02:23]} 14. Nxd4 {[%clk 0:02:37]}  O-O {[%clk 0:02:17]} 15. Nxe6 {[%clk 0:02:37]}  fxe6 {[%clk 0:02:16]} 16. exd5 {[%clk 0:02:37]}  exd5 {[%clk 0:02:14]} 17. Qb3 {[%clk 0:02:25]}  b6 {[%clk 0:02:05]} 18. Bf4 {[%clk 0:02:19]}  Qd7 {[%clk 0:02:04]} 19. Rad1 {[%clk 0:02:15]}  Rad8 {[%clk 0:02:00]} 20. h4 {[%clk 0:02:16]}  Kh7 {[%clk 0:01:56]} 21. Rd2 {[%clk 0:02:10]}  Qg4 {[%clk 0:01:47]} 22. Re1 {[%clk 0:02:08]}  Nf5 {[%clk 0:01:44]} 23. Bf3 {[%clk 0:01:45]}  Qh3 {[%clk 0:01:38]} 24. Bg2 {[%clk 0:01:37]}  Qg4 {[%clk 0:01:37]} 25. f3 {[%clk 0:01:37]}  Qh5 {[%clk 0:01:33]} 26. Rxd5 {[%clk 0:01:35]}  Rxd5 {[%clk 0:01:24]} 27. Qxd5 {[%clk 0:01:36]}  Nxg3 {[%clk 0:01:19]} 28. Qxh5 {[%clk 0:01:36]}  Nxh5 {[%clk 0:01:19]} 29. Bd6 {[%clk 0:01:33]}  Rf7 {[%clk 0:01:18]} 30. Kf2 {[%clk 0:01:26]}  Bxb2 {[%clk 0:01:16]} 31. Re8 {[%clk 0:01:20]}  Bd4+ {[%clk 0:01:14]} 32. Ke2 {[%clk 0:01:18]}  Nf6 {[%clk 0:01:03]} 33. Ra8 {[%clk 0:01:09]}  Rd7 {[%clk 0:00:59]} 34. Bb4 {[%clk 0:01:07]}  Nd5 {[%clk 0:00:56]} 35. Bd2 {[%clk 0:01:07]}  Bc3 {[%clk 0:00:54]} 36. Bc1 {[%clk 0:01:06]}  Re7+ {[%clk 0:00:49]} 37. Kd3 {[%clk 0:01:05]}  Bb4 {[%clk 0:00:47]} 38. Bh3 {[%clk 0:01:04]}  Bc5 {[%clk 0:00:42]} 39. h5 {[%clk 0:01:04]}  Be3 {[%clk 0:00:19]} 40. Bb2 {[%clk 0:00:59]}  Nf4+ {[%clk 0:00:17]} 41. Kc4 {[%clk 0:00:57]}  Nxh3 {[%clk 0:00:17]} 42. Rh8# {[%clk 0:00:57]} 1-0


[Site "https://www.chess.com"]